[Event "22nd ETCC Women 2019"]
[Site "Batumi"]
[Date "2019.10.26"]
[Round "3.11"]
[White "Gueci, Tea"]
[Black "Navrotescu, Andreea-Cristiana"]
[Result "0-1"]
[ECO "C11"]
[WhiteElo "2265"]
[BlackElo "2241"]
[Annotator "NA"]
[PlyCount "64"]
[EventDate "2019.10.24"]
[EventType "team-tourn"]
[EventCountry "GEO"]
[SourceTitle "playchess.com"]
[Source "ChessBase"]
[SourceQuality "1"]
[WhiteTeam "Italy"]
[BlackTeam "France"]
[WhiteTeamCountry "ITA"]
[BlackTeamCountry "FRA"]
[TimeControl "40/5400+30:1800+30"]

1. e4 {[%emt 0:00:00]} e6 {[%emt 0:00:00]} 2. d4 {[%emt 0:00:00]} d5 {[%emt 0:00:00]} 3. Nc3 {[%emt 0:00:00]} Nf6 {[%emt 0:00:00]} 4. e5 {[%emt 0:00:00]} Nfd7 {[%emt 0:00:00]} 5. f4 {[%emt 0:00:00]} c5 {[%emt 0:00:00]} 6. Nf3 {[%emt 0:00:00]} Nc6 {[%emt 0:00:07]} 7. Be3 {[%emt 0:00:05]} Be7 {[%emt 0:00:08]} 8. Qd2 {[%emt 0:00:12]} O-O {[%emt 0:00:17]} 9. dxc5 {[%emt 0:00:24]} Qa5 {[%emt 0:00:18]} 10. a3 {[%emt 0:00:13]} Bxc5 {[%emt 0:00:27]} 11. Bxc5 {[%emt 0:02:38]} Nxc5 {[%emt 0:00:21]} 12. O-O-O {[%emt 0:03:34]} a6 {[%emt 0:10:07]} 13. Nd4 {[%emt 0:12:44]} Rd8 {[%emt 0:10:31]} 14. Kb1 {[%emt 0:05:00]} Qc7 {[%emt 0:26:34]} 15. Qe3 {[%emt 0:07:17]} b5 {[%emt 0:09:15]} 16. h4 {[%emt 0:15:16]} Rb8 {[%emt 0:03:22]} 17. Nxc6 {[%emt 0:06:12]} Qxc6 {[%emt 0:00:10]} 18. Rd4 {[%emt 0:00:41]} a5 {[%emt 0:02:11]} 19. Na2 {[%emt 0:04:07]} Ba6 {[%emt 0:03:03]} 20. h5 {[%emt 0:03:08]} Rdc8 {[%emt 0:02:22]} 21. Be2 {[%emt 0:06:34]} b4 {[%emt 0:07:15]} 22. axb4 {[%emt 0:05:26]} Bxe2 {[%emt 0:04:58]} 23. Qxe2 {[%emt 0:02:52]} axb4 {[%emt 0:00:09]} 24. Rxb4 {[%emt 0:11:07]} Rxb4 {[%emt 0:00:12]} 25. Nxb4 {[%emt 0:00:05]} Qa4 {[%emt 0:00:02]} 26. c3 {[%emt 0:05:32]} Ra8 {[%emt 0:03:17]} 27. Rd1 {[%emt 0:01:51]} Ne4 {[%emt 0:01:07]} 28. Rd3 {[%emt 0:02:08]} h6 {[%emt 0:03:30]} 29. g4 {[%emt 0:01:55]} Nc5 {[%emt 0:01:58]} 30. Rd1 {[%emt 0:01:02]} Qb3 {[%emt 0:02:17]} 31. Qc2 {[%emt 0:02:18]} Qc4 {[%emt 0:00:11]} 32. Rd4 {[%emt 0:00:24]} Nb3 {[%emt 0:00:58]} 0-1

[Event "22nd ETCC Women 2019"]
[Site "Batumi"]
[Date "2019.10.26"]
[Round "3.11"]
[White "Makropoulou, Marina"]
[Black "Lauterbach, Ingrid"]
[Result "1-0"]
[ECO "B42"]
[WhiteElo "2201"]
[BlackElo "2078"]
[Annotator "NA"]
[PlyCount "75"]
[EventDate "2019.10.24"]
[EventType "team-tourn"]
[EventCountry "GEO"]
[SourceTitle "playchess.com"]
[Source "ChessBase"]
[SourceQuality "1"]
[WhiteTeam "Greece"]
[BlackTeam "England"]
[WhiteTeamCountry "GRE"]
[BlackTeamCountry "ENG"]
[TimeControl "40/5400+30:1800+30"]

1. e4 {[%emt 0:00:00]} c5 {[%emt 0:00:00]} 2. Nf3 {[%emt 0:00:00]} e6 {[%emt 0:00:00]} 3. d4 {[%emt 0:00:09]} cxd4 {[%emt 0:00:00]} 4. Nxd4 {[%emt 0:00:06]} a6 {[%emt 0:00:06]} 5. Bd3 {[%emt 0:01:09]} Bc5 {[%emt 0:00:36]} 6. Nb3 {[%emt 0:00:36]} Be7 {[%emt 0:00:14]} 7. O-O {[%emt 0:03:27]} d6 {[%emt 0:01:35]} 8. c4 {[%emt 0:02:58]} Nf6 {[%emt 0:03:33]} 9. Nc3 {[%emt 0:00:33]} b6 {[%emt 0:01:40]} 10. f4 {[%emt 0:04:48]} Nbd7 {[%emt 0:03:27]} 11. Be3 {[%emt 0:07:48]} Bb7 {[%emt 0:06:02]} 12. Qe2 {[%emt 0:06:39]} Qc7 {[%emt 0:05:17]} 13. Nd2 {[%emt 0:03:56]} O-O {[%emt 0:09:16]} 14. g4 {[%emt 0:17:03]} Nc5 {[%emt 0:13:34]} 15. Bc2 {[%emt 0:02:52]} d5 {[%emt 0:09:50]} 16. exd5 {[%emt 0:00:46]} exd5 {[%emt 0:00:19]} 17. g5 {[%emt 0:00:08]} d4 {[%emt 0:07:54]} 18. Bxd4 {[%emt 0:02:08]} Ne6 {[%emt 0:06:12]} 19. Be3 {[%emt 0:01:19]} Qc6 {[%emt 0:02:53]} 20. gxf6 {[%emt 0:02:21]} Qh1+ {[%emt 0:00:24]} 21. Kf2 {[%emt 0:00:01]} Qxh2+ {[%emt 0:01:44]} 22. Ke1 {[%emt 0:00:14]} Qh4+ {[%emt 0:00:40]} 23. Qf2 {[%emt 0:04:48]} Qxf6 {[%emt 0:01:12]} 24. Nde4 {[%emt 0:00:34]} Qh6 {[%emt 0:04:44]} 25. f5 {[%emt 0:07:04]} Qh3 {[%emt 0:01:43]} 26. Ke2 {[%emt 0:11:31]} Bh4 {[%emt 0:03:57]} 27. Qg1 {[%emt 0:00:52]} h5 {[%emt 0:05:56]} 28. Nd5 {[%emt 0:07:59]} Bxd5 {[%emt 0:06:21]} 29. cxd5 {[%emt 0:00:01]} Nc5 {[%emt 0:00:09]} 30. Nxc5 {[%emt 0:00:40]} bxc5 {[%emt 0:00:07]} 31. Rf3 {[%emt 0:00:13]} Qg4 {[%emt 0:00:15]} 32. Qxg4 {[%emt 0:00:06]} hxg4 {[%emt 0:00:06]} 33. Rf4 {[%emt 0:00:07]} Rfe8 {[%emt 0:01:33]} 34. Rxg4 {[%emt 0:00:39]} Bf6 {[%emt 0:00:11]} 35. Rag1 {[%emt 0:04:30]} Bd4 {[%emt 0:02:12]} 36. Rxg7+ {[%emt 0:06:43]} Bxg7 {[%emt 0:03:45]} 37. f6 {[%emt 0:00:03]} Re5 {[%emt 0:00:09]} 38. Rxg7+ {[%emt 0:00:15]} 1-0

[Event "22nd ETCC Women 2019"]
[Site "Batumi"]
[Date "2019.10.26"]
[Round "3.12"]
[White "Benmesbah, Natacha"]
[Black "Movileanu, Daniela"]
[Result "0-1"]
[ECO "B23"]
[WhiteElo "2265"]
[BlackElo "2173"]
[Annotator "NA"]
[PlyCount "130"]
[EventDate "2019.10.24"]
[EventType "team-tourn"]
[EventCountry "GEO"]
[SourceTitle "playchess.com"]
[Source "ChessBase"]
[SourceQuality "1"]
[WhiteTeam "France"]
[BlackTeam "Italy"]
[WhiteTeamCountry "FRA"]
[BlackTeamCountry "ITA"]
[TimeControl "40/5400+30:1800+30"]

1. e4 {[%emt 0:00:00]} c5 {[%emt 0:00:00]} 2. Nc3 {[%emt 0:00:00]} e6 {[%emt 0:00:00]} 3. Nf3 {[%emt 0:00:54]} a6 {[%emt 0:01:00]} 4. g3 {[%emt 0:02:14]} d6 {[%emt 0:05:06]} 5. Bg2 {[%emt 0:01:08]} Nf6 {[%emt 0:00:23]} 6. O-O {[%emt 0:05:33]} Be7 {[%emt 0:01:14]} 7. d3 {[%emt 0:01:38]} O-O {[%emt 0:01:05]} 8. Ng5 {[%emt 0:04:06]} Nc6 {[%emt 0:07:48]} 9. f4 {[%emt 0:02:19]} Qc7 {[%emt 0:05:35]} 10. Nh3 {[%emt 0:05:45]} Rb8 {[%emt 0:03:58]} 11. g4 {[%emt 0:05:45]} b5 {[%emt 0:08:07]} 12. g5 {[%emt 0:04:33]} Nd7 {[%emt 0:00:19]} 13. f5 {[%emt 0:14:09]} Nce5 {[%emt 0:04:19]} 14. Rf4 {[%emt 0:04:20]} b4 {[%emt 0:08:06]} 15. Nb1 {[%emt 0:05:32]} exf5 {[%emt 0:02:14]} 16. Rxf5 {[%emt 0:14:15]} Ng6 {[%emt 0:03:47]} 17. Qh5 {[%emt 0:03:42]} Nde5 {[%emt 0:03:59]} 18. Be3 {[%emt 0:03:52]} d5 {[%emt 0:05:31]} 19. Nd2 {[%emt 0:04:18]} Bd6 {[%emt 0:02:22]} 20. Raf1 {[%emt 0:01:20]} Be6 {[%emt 0:08:04]} 21. exd5 {[%emt 0:04:23]} Bxf5 {[%emt 0:00:55]} 22. Rxf5 {[%emt 0:00:05]} Ne7 {[%emt 0:02:08]} 23. Rf4 {[%emt 0:02:26]} N5g6 {[%emt 0:00:56]} 24. Be4 {[%emt 0:01:06]} Bxf4 {[%emt 0:06:00]} 25. Bxf4 {[%emt 0:00:09]} Qd7 {[%emt 0:00:44]} 26. d6 {[%emt 0:01:31]} Nc6 {[%emt 0:01:53]} 27. Nc4 {[%emt 0:01:52]} Rfe8 {[%emt 0:01:55]} 28. Qf3 {[%emt 0:05:18]} Nd4 {[%emt 0:05:04]} 29. Qh5 {[%emt 0:00:06]} Rxe4 {[%emt 0:02:41]} 30. dxe4 {[%emt 0:00:04]} Qe6 {[%emt 0:00:12]} 31. b3 {[%emt 0:02:02]} Qxe4 {[%emt 0:00:35]} 32. Bg3 {[%emt 0:00:09]} Qxc2 {[%emt 0:03:13]} 33. Nf2 {[%emt 0:00:38]} Ne2+ {[%emt 0:02:06]} 34. Kf1 {[%emt 0:00:04]} Nef4 {[%emt 0:01:42]} 35. Qd1 {[%emt 0:00:57]} Qxd1+ {[%emt 0:02:29]} 36. Nxd1 {[%emt 0:00:04]} Ne6 {[%emt 0:00:48]} 37. h4 {[%emt 0:00:27]} Rd8 {[%emt 0:00:15]} 38. Ke2 {[%emt 0:01:35]} f6 {[%emt 0:00:56]} 39. gxf6 {[%emt 0:00:17]} gxf6 {[%emt 0:00:05]} 40. Nde3 {[%emt 0:00:00]} Ngf4+ {[%emt 0:00:00]} 41. Kf3 {[%emt 0:03:10]} Nd3 {[%emt 0:05:36]} 42. Ke4 {[%emt 0:03:04]} Nc1 {[%emt 0:06:20]} 43. Kd5 {[%emt 0:02:43]} Ng7 {[%emt 0:00:56]} 44. Na5 {[%emt 0:09:42]} Nxa2 {[%emt 0:05:46]} 45. Nb7 {[%emt 0:00:09]} Nc3+ {[%emt 0:00:32]} 46. Kc6 {[%emt 0:02:28]} Rc8+ {[%emt 0:00:38]} 47. Kd7 {[%emt 0:00:28]} Rf8 {[%emt 0:03:47]} 48. Nxc5 {[%emt 0:01:29]} Ne2 {[%emt 0:01:42]} 49. Bf2 {[%emt 0:00:43]} f5 {[%emt 0:01:26]} 50. Nd5 {[%emt 0:01:49]} a5 {[%emt 0:03:17]} 51. Kc6 {[%emt 0:06:12]} Nc3 {[%emt 0:01:08]} 52. Ne7+ {[%emt 0:01:06]} Kf7 {[%emt 0:00:12]} 53. Nd7 {[%emt 0:03:33]} Re8 {[%emt 0:02:41]} 54. Nd5 {[%emt 0:01:07]} Nxd5 {[%emt 0:03:58]} 55. Kxd5 {[%emt 0:00:04]} Re2 {[%emt 0:00:57]} 56. Ne5+ {[%emt 0:00:19]} Kf8 {[%emt 0:00:28]} 57. Bc5 {[%emt 0:00:32]} Rd2+ {[%emt 0:00:14]} 58. Kc6 {[%emt 0:00:06]} Ne6 {[%emt 0:00:20]} 59. Bb6 {[%emt 0:00:39]} a4 {[%emt 0:00:46]} 60. Kd7 {[%emt 0:00:57]} a3 {[%emt 0:00:58]} 61. Kxe6 {[%emt 0:00:19]} a2 {[%emt 0:00:09]} 62. Nd7+ {[%emt 0:00:46]} Kg7 {[%emt 0:00:23]} 63. Bd8 {[%emt 0:00:14]} a1=Q {[%emt 0:01:01]} 64. Ne5 {[%emt 0:00:07]} Rxd6+ {[%emt 0:00:28]} 65. Kxd6 {[%emt 0:00:06]} Qd4+ {[%emt 0:00:06]} 0-1

[Event "22nd ETCC Women 2019"]
[Site "Batumi"]
[Date "2019.10.26"]
[Round "3.12"]
[White "Bhatia, Kanwal K"]
[Black "Makka, Ioulia"]
[Result "0-1"]
[ECO "B19"]
[WhiteElo "2038"]
[BlackElo "2048"]
[Annotator "NA"]
[PlyCount "58"]
[EventDate "2019.10.24"]
[EventType "team-tourn"]
[EventCountry "GEO"]
[SourceTitle "playchess.com"]
[Source "ChessBase"]
[SourceQuality "1"]
[WhiteTeam "England"]
[BlackTeam "Greece"]
[WhiteTeamCountry "ENG"]
[BlackTeamCountry "GRE"]
[TimeControl "40/5400+30:1800+30"]

1. e4 {[%emt 0:00:00]} c6 {[%emt 0:00:00]} 2. d4 {[%emt 0:00:00]} d5 {[%emt 0:00:00]} 3. Nd2 {[%emt 0:00:00]} dxe4 {[%emt 0:00:02]} 4. Nxe4 {[%emt 0:00:00]} Bf5 {[%emt 0:00:15]} 5. Ng3 {[%emt 0:00:00]} Bg6 {[%emt 0:00:07]} 6. h4 {[%emt 0:00:04]} h6 {[%emt 0:00:06]} 7. Nf3 {[%emt 0:00:09]} Nd7 {[%emt 0:00:12]} 8. h5 {[%emt 0:00:07]} Bh7 {[%emt 0:00:05]} 9. Bd3 {[%emt 0:00:07]} Bxd3 {[%emt 0:00:08]} 10. Qxd3 {[%emt 0:00:05]} e6 {[%emt 0:00:09]} 11. Bd2 {[%emt 0:00:15]} Ngf6 {[%emt 0:00:46]} 12. O-O-O {[%emt 0:00:18]} Be7 {[%emt 0:00:18]} 13. Kb1 {[%emt 0:00:37]} Qb6 {[%emt 0:00:46]} 14. c4 {[%emt 0:01:15]} Rd8 {[%emt 0:07:03]} 15. Qc2 {[%emt 0:03:53]} O-O {[%emt 0:04:10]} 16. Bf4 {[%emt 0:00:35]} Rfe8 {[%emt 0:06:42]} 17. Nf1 {[%emt 0:17:23]} c5 {[%emt 0:17:09]} 18. d5 {[%emt 0:00:23]} exd5 {[%emt 0:01:58]} 19. Ne3 {[%emt 0:24:21]} d4 {[%emt 0:04:43]} 20. Nf5 {[%emt 0:00:33]} Ng4 {[%emt 0:21:08]} 21. Rh3 {[%emt 0:10:32]} Bf8 {[%emt 0:03:06]} 22. Rg3 {[%emt 0:02:57]} Ndf6 {[%emt 0:01:40]} 23. Nh2 {[%emt 0:27:04]} d3 {[%emt 0:06:48]} 24. Rgxd3 {[%emt 0:00:26]} Rxd3 {[%emt 0:01:56]} 25. Qxd3 {[%emt 0:00:16]} Nxf2 {[%emt 0:09:26]} 26. Nxh6+ {[%emt 0:03:22]} gxh6 {[%emt 0:01:38]} 27. Qg3+ {[%emt 0:00:28]} Bg7 {[%emt 0:01:02]} 28. Bxh6 {[%emt 0:08:05]} Nxh5 {[%emt 0:00:56]} 29. Qxf2 {[%emt 0:00:03]} Qxh6 {[%emt 0:00:30]} 0-1

[Event "22nd ETCC Women 2019"]
[Site "Batumi"]
[Date "2019.10.26"]
[Round "3.13"]
[White "Socko, Monika"]
[Black "Hoang, Thanh Trang"]
[Result "1/2-1/2"]
[ECO "A81"]
[WhiteElo "2417"]
[BlackElo "2414"]
[Annotator "NA"]
[PlyCount "173"]
[EventDate "2019.10.24"]
[EventType "team-tourn"]
[EventCountry "GEO"]
[SourceTitle "playchess.com"]
[Source "ChessBase"]
[SourceQuality "1"]
[WhiteTeam "Poland"]
[BlackTeam "Hungary"]
[WhiteTeamCountry "POL"]
[BlackTeamCountry "HUN"]
[TimeControl "40/5400+30:1800+30"]

1. d4 {[%emt 0:00:00]} f5 {[%emt 0:00:00]} 2. g3 {[%emt 0:00:00]} Nf6 {[%emt 0:00:10]} 3. Bg2 {[%emt 0:00:00]} g6 {[%emt 0:00:40]} 4. c4 {[%emt 0:00:17]} Bg7 {[%emt 0:00:13]} 5. Nc3 {[%emt 0:00:06]} O-O {[%emt 0:00:22]} 6. Nh3 {[%emt 0:00:24]} Nc6 {[%emt 0:01:03]} 7. d5 {[%emt 0:06:15]} Ne5 {[%emt 0:00:40]} 8. b3 {[%emt 0:01:10]} c5 {[%emt 0:06:11]} 9. O-O {[%emt 0:01:50]} d6 {[%emt 0:01:02]} 10. Qc2 {[%emt 0:02:16]} a6 {[%emt 0:02:13]} 11. a4 {[%emt 0:00:20]} b6 {[%emt 0:00:31]} 12. Bb2 {[%emt 0:01:07]} Rb8 {[%emt 0:01:17]} 13. Rae1 {[%emt 0:01:45]} Bd7 {[%emt 0:07:36]} 14. f4 {[%emt 0:02:33]} Nf7 {[%emt 0:01:54]} 15. e4 {[%emt 0:09:44]} fxe4 {[%emt 0:05:26]} 16. Nxe4 {[%emt 0:04:51]} b5 {[%emt 0:02:09]} 17. axb5 {[%emt 0:02:18]} axb5 {[%emt 0:00:19]} 18. Nxf6+ {[%emt 0:08:34]} Bxf6 {[%emt 0:08:55]} 19. Bxf6 {[%emt 0:03:04]} exf6 {[%emt 0:00:11]} 20. Nf2 {[%emt 0:02:03]} Nh6 {[%emt 0:05:49]} 21. Qc3 {[%emt 0:05:35]} bxc4 {[%emt 0:08:57]} 22. bxc4 {[%emt 0:00:06]} Nf5 {[%emt 0:01:01]} 23. Ne4 {[%emt 0:00:21]} Bc8 {[%emt 0:01:17]} 24. g4 {[%emt 0:07:23]} Nd4 {[%emt 0:03:19]} 25. g5 {[%emt 0:00:26]} Rb3 {[%emt 0:12:36]} 26. Qa1 {[%emt 0:07:02]} Nc2 {[%emt 0:10:54]} 27. Qa2 {[%emt 0:05:13]} Nxe1 {[%emt 0:00:20]} 28. Qxb3 {[%emt 0:00:05]} Nxg2 {[%emt 0:00:18]} 29. Kxg2 {[%emt 0:00:58]} fxg5 {[%emt 0:02:19]} 30. fxg5 {[%emt 0:00:24]} Rxf1 {[%emt 0:00:31]} 31. Kxf1 {[%emt 0:00:02]} Qe7 {[%emt 0:04:10]} 32. Nf6+ {[%emt 0:03:56]} Kf7 {[%emt 0:00:18]} 33. Qb8 {[%emt 0:06:52]} Qb7 {[%emt 0:01:05]} 34. Qxb7+ {[%emt 0:00:05]} Bxb7 {[%emt 0:00:05]} 35. Ke2 {[%emt 0:00:02]} h5 {[%emt 0:01:26]} 36. Kd3 {[%emt 0:01:08]} Bc8 {[%emt 0:00:31]} 37. Kc3 {[%emt 0:00:05]} Bf5 {[%emt 0:02:04]} 38. Kb3 {[%emt 0:00:03]} Bd3 {[%emt 0:01:42]} 39. Nd7 {[%emt 0:00:42]} Be2 {[%emt 0:02:59]} 40. Nb6 {[%emt 0:00:00]} Bd1+ {[%emt 0:00:00]} 41. Ka3 {[%emt 0:07:11]} Ke7 {[%emt 0:02:33]} 42. Na4 {[%emt 0:00:31]} Kd7 {[%emt 0:04:43]} 43. Nc3 {[%emt 0:00:43]} Bc2 {[%emt 0:03:21]} 44. Kb2 {[%emt 0:00:06]} Bd3 {[%emt 0:00:17]} 45. Kb3 {[%emt 0:00:06]} Kc7 {[%emt 0:02:07]} 46. Nd1 {[%emt 0:00:44]} Kb6 {[%emt 0:02:34]} 47. Nb2 {[%emt 0:01:30]} Be2 {[%emt 0:03:53]} 48. Na4+ {[%emt 0:00:40]} Kc7 {[%emt 0:00:12]} 49. Nc3 {[%emt 0:00:12]} Bd3 {[%emt 0:00:20]} 50. Nb5+ {[%emt 0:01:46]} Kd7 {[%emt 0:00:10]} 51. Na3 {[%emt 0:00:14]} Kc7 {[%emt 0:00:58]} 52. Kc3 {[%emt 0:00:06]} Be2 {[%emt 0:00:36]} 53. Nc2 {[%emt 0:00:50]} Bd1 {[%emt 0:03:18]} 54. Ne1 {[%emt 0:00:28]} Bg4 {[%emt 0:05:05]} 55. Ng2 {[%emt 0:00:41]} Bf5 {[%emt 0:00:14]} 56. Nf4 {[%emt 0:00:11]} Kb6 {[%emt 0:01:08]} 57. Kb3 {[%emt 0:00:06]} Be4 {[%emt 0:01:04]} 58. Ne2 {[%emt 0:04:07]} Bd3 {[%emt 0:00:31]} 59. Ng3 {[%emt 0:04:47]} Bb1 {[%emt 0:02:41]} 60. Kc3 {[%emt 0:01:07]} Kc7 {[%emt 0:00:17]} 61. Ne2 {[%emt 0:00:59]} Be4 {[%emt 0:00:50]} 62. Kb3 {[%emt 0:00:13]} Bd3 {[%emt 0:01:27]} 63. Nc3 {[%emt 0:00:21]} Bf1 {[%emt 0:01:21]} 64. Nb5+ {[%emt 0:01:15]} Kd7 {[%emt 0:00:05]} 65. Na3 {[%emt 0:00:08]} Kc7 {[%emt 0:00:20]} 66. Kc3 {[%emt 0:01:21]} Be2 {[%emt 0:00:22]} 67. Nc2 {[%emt 0:00:10]} Bg4 {[%emt 0:02:44]} 68. Ne3 {[%emt 0:00:12]} Bf3 {[%emt 0:00:49]} 69. Kd3 {[%emt 0:00:43]} Kd7 {[%emt 0:00:17]} 70. Nc2 {[%emt 0:00:38]} Bg4 {[%emt 0:00:33]} 71. Na3 {[%emt 0:00:10]} Bf5+ {[%emt 0:01:17]} 72. Kc3 {[%emt 0:00:04]} Kc7 {[%emt 0:00:19]} 73. Kb2 {[%emt 0:00:47]} Bd3 {[%emt 0:00:14]} 74. Kb3 {[%emt 0:00:04]} Bf1 {[%emt 0:00:38]} 75. Kc3 {[%emt 0:01:20]} Be2 {[%emt 0:00:30]} 76. Nb1 {[%emt 0:00:13]} Bf1 {[%emt 0:01:18]} 77. Nd2 {[%emt 0:00:16]} Bh3 {[%emt 0:00:37]} 78. Kb3 {[%emt 0:00:11]} Bf5 {[%emt 0:00:20]} 79. Ka4 {[%emt 0:01:44]} Kb6 {[%emt 0:00:07]} 80. Ka3 {[%emt 0:00:30]} Bd3 {[%emt 0:00:19]} 81. Kb3 {[%emt 0:00:12]} Kc7 {[%emt 0:00:37]} 82. Kc3 {[%emt 0:00:59]} Bf5 {[%emt 0:00:24]} 83. Nb3 {[%emt 0:00:05]} Kb6 {[%emt 0:00:40]} 84. Nc1 {[%emt 0:00:05]} Kc7 {[%emt 0:00:41]} 85. Ne2 {[%emt 0:00:04]} Be4 {[%emt 0:00:55]} 86. Kb3 {[%emt 0:00:16]} Bd3 {[%emt 0:00:34]} 87. Nf4 {[%emt 0:00:05]} 1/2-1/2

[Event "22nd ETCC Women 2019"]
[Site "Batumi"]
[Date "2019.10.26"]
[Round "3.13"]
[White "Koridze, Lile"]
[Black "Golubenko, Valentina"]
[Result "1-0"]
[ECO "E10"]
[WhiteElo "1988"]
[BlackElo "2274"]
[Annotator "NA"]
[PlyCount "85"]
[EventDate "2019.10.24"]
[EventType "team-tourn"]
[EventCountry "GEO"]
[SourceTitle "playchess.com"]
[Source "ChessBase"]
[SourceQuality "1"]
[WhiteTeam "Georgia"]
[BlackTeam "Croatia"]
[WhiteTeamCountry "GEO"]
[BlackTeamCountry "CRO"]
[TimeControl "40/5400+30:1800+30"]

1. d4 {[%emt 0:00:00]} Nf6 {[%emt 0:00:00]} 2. c4 {[%emt 0:00:00]} e6 {[%emt 0:00:00]} 3. Nf3 {[%emt 0:00:00]} d5 {[%emt 0:00:00]} 4. g3 {[%emt 0:00:00]} Bb4+ {[%emt 0:00:01]} 5. Bd2 {[%emt 0:00:00]} Be7 {[%emt 0:00:05]} 6. Bg2 {[%emt 0:00:00]} Ne4 {[%emt 0:00:19]} 7. O-O {[%emt 0:00:53]} c6 {[%emt 0:00:23]} 8. Qc2 {[%emt 0:00:30]} Nd7 {[%emt 0:00:34]} 9. b3 {[%emt 0:01:39]} f5 {[%emt 0:02:21]} 10. Rd1 {[%emt 0:01:27]} g5 {[%emt 0:02:05]} 11. Bc3 {[%emt 0:02:24]} h5 {[%emt 0:07:22]} 12. Bb2 {[%emt 0:03:54]} h4 {[%emt 0:03:54]} 13. Nc3 {[%emt 0:01:38]} g4 {[%emt 0:07:19]} 14. Ne5 {[%emt 0:01:01]} hxg3 {[%emt 0:06:41]} 15. hxg3 {[%emt 0:00:11]} Nxe5 {[%emt 0:10:04]} 16. dxe5 {[%emt 0:05:07]} Ng5 {[%emt 0:34:56]} 17. cxd5 {[%emt 0:14:08]} exd5 {[%emt 0:00:46]} 18. e6 {[%emt 0:01:26]} Rf8 {[%emt 0:08:22]} 19. Bxd5 {[%emt 0:00:35]} Nh3+ {[%emt 0:01:17]} 20. Kf1 {[%emt 0:00:48]} Qb6 {[%emt 0:00:28]} 21. e3 {[%emt 0:00:41]} cxd5 {[%emt 0:07:15]} 22. Nxd5 {[%emt 0:00:08]} Qb5+ {[%emt 0:00:36]} 23. Kg2 {[%emt 0:00:28]} Bd6 {[%emt 0:01:43]} 24. e7 {[%emt 0:04:20]} Rf7 {[%emt 0:01:57]} 25. Qc3 {[%emt 0:00:20]} Be6 {[%emt 0:01:30]} 26. Nc7+ {[%emt 0:00:08]} Bxc7 {[%emt 0:01:03]} 27. Qh8+ {[%emt 0:00:59]} Kxe7 {[%emt 0:00:01]} 28. Ba3+ {[%emt 0:00:06]} Bd6 {[%emt 0:00:04]} 29. Bxd6+ {[%emt 0:00:04]} Kd7 {[%emt 0:00:03]} 30. Bc5+ {[%emt 0:00:54]} Kc6 {[%emt 0:02:27]} 31. Qe5 {[%emt 0:00:06]} Qxc5 {[%emt 0:01:00]} 32. Qxe6+ {[%emt 0:00:09]} Kb5 {[%emt 0:00:39]} 33. Rd5 {[%emt 0:00:19]} Rc7 {[%emt 0:00:20]} 34. Rxc5+ {[%emt 0:00:43]} Rxc5 {[%emt 0:00:06]} 35. b4 {[%emt 0:00:42]} Rc6 {[%emt 0:00:51]} 36. Qxf5+ {[%emt 0:00:06]} Kxb4 {[%emt 0:00:14]} 37. Qxg4+ {[%emt 0:00:22]} Ka3 {[%emt 0:00:29]} 38. Qxh3 {[%emt 0:00:48]} Kb2 {[%emt 0:00:58]} 39. Qh1 {[%emt 0:00:07]} Rc2 {[%emt 0:00:33]} 40. Qb1+ {[%emt 0:00:00]} Kc3 {[%emt 0:00:00]} 41. Qb3+ {[%emt 0:00:26]} Kd2 {[%emt 0:00:11]} 42. Qd5+ {[%emt 0:00:08]} Kc3 {[%emt 0:00:21]} 43. Qd4# {[%emt 0:00:05]} 1-0

[Event "22nd ETCC Women 2019"]
[Site "Batumi"]
[Date "2019.10.26"]
[Round "3.14"]
[White "Gara, Anita"]
[Black "Zawadzka, Jolanta"]
[Result "1/2-1/2"]
[ECO "C43"]
[WhiteElo "2366"]
[BlackElo "2406"]
[Annotator "NA"]
[PlyCount "97"]
[EventDate "2019.10.24"]
[EventType "team-tourn"]
[EventCountry "GEO"]
[SourceTitle "playchess.com"]
[Source "ChessBase"]
[SourceQuality "1"]
[WhiteTeam "Hungary"]
[BlackTeam "Poland"]
[WhiteTeamCountry "HUN"]
[BlackTeamCountry "POL"]
[TimeControl "40/5400+30:1800+30"]

1. e4 {[%emt 0:00:00]} e5 {[%emt 0:00:00]} 2. Nf3 {[%emt 0:00:00]} Nf6 {[%emt 0:00:00]} 3. d4 {[%emt 0:00:44]} Nxe4 {[%emt 0:00:11]} 4. Bd3 {[%emt 0:00:04]} d5 {[%emt 0:00:08]} 5. Nxe5 {[%emt 0:00:11]} Nd7 {[%emt 0:00:56]} 6. Nc3 {[%emt 0:00:19]} Nxe5 {[%emt 0:05:52]} 7. dxe5 {[%emt 0:00:10]} Nxc3 {[%emt 0:05:09]} 8. bxc3 {[%emt 0:00:05]} Bc5 {[%emt 0:03:05]} 9. O-O {[%emt 0:00:47]} Be6 {[%emt 0:03:16]} 10. Rb1 {[%emt 0:00:46]} Bb6 {[%emt 0:07:32]} 11. Qf3 {[%emt 0:01:02]} Qe7 {[%emt 0:05:59]} 12. Be3 {[%emt 0:09:16]} h6 {[%emt 0:06:54]} 13. a4 {[%emt 0:07:17]} O-O {[%emt 0:04:09]} 14. Rfe1 {[%emt 0:21:34]} f5 {[%emt 0:16:43]} 15. exf6 {[%emt 0:07:35]} Qxf6 {[%emt 0:02:24]} 16. Qg3 {[%emt 0:00:36]} Rae8 {[%emt 0:03:04]} 17. a5 {[%emt 0:09:30]} Bxe3 {[%emt 0:00:55]} 18. Rxe3 {[%emt 0:00:16]} b6 {[%emt 0:01:11]} 19. Rbe1 {[%emt 0:05:36]} Bd7 {[%emt 0:04:44]} 20. Rxe8 {[%emt 0:01:29]} Bxe8 {[%emt 0:00:20]} 21. a6 {[%emt 0:08:51]} c5 {[%emt 0:04:26]} 22. Re5 {[%emt 0:00:48]} Bf7 {[%emt 0:02:17]} 23. Qe3 {[%emt 0:01:23]} Qc6 {[%emt 0:01:17]} 24. h3 {[%emt 0:06:35]} c4 {[%emt 0:04:08]} 25. Bf5 {[%emt 0:02:54]} Qb5 {[%emt 0:06:41]} 26. Re7 {[%emt 0:02:47]} Re8 {[%emt 0:02:08]} 27. Kh2 {[%emt 0:05:08]} Kf8 {[%emt 0:01:30]} 28. Rxe8+ {[%emt 0:00:03]} Qxe8 {[%emt 0:00:16]} 29. Qf4 {[%emt 0:00:21]} g5 {[%emt 0:05:21]} 30. Qd4 {[%emt 0:00:13]} Qb8+ {[%emt 0:00:41]} 31. g3 {[%emt 0:00:15]} Qd6 {[%emt 0:00:16]} 32. Bg4 {[%emt 0:02:19]} Ke7 {[%emt 0:00:43]} 33. Bf3 {[%emt 0:00:14]} Qf6 {[%emt 0:00:53]} 34. Qe3+ {[%emt 0:00:49]} Kd6 {[%emt 0:00:12]} 35. Bg2 {[%emt 0:03:17]} Kc6 {[%emt 0:01:16]} 36. Qd2 {[%emt 0:02:39]} Qf5 {[%emt 0:01:23]} 37. Qe2 {[%emt 0:01:17]} Kb5 {[%emt 0:01:22]} 38. Qe7 {[%emt 0:00:03]} Kxa6 {[%emt 0:00:10]} 39. Qa3+ {[%emt 0:00:19]} Kb7 {[%emt 0:00:24]} 40. Qe7+ {[%emt 0:00:00]} Kb8 {[%emt 0:00:00]} 41. Qd6+ {[%emt 0:00:41]} Kb7 {[%emt 0:03:45]} 42. Qe7+ {[%emt 0:00:59]} Kc6 {[%emt 0:00:56]} 43. Qxa7 {[%emt 0:05:15]} Qxf2 {[%emt 0:00:40]} 44. Qa8+ {[%emt 0:00:36]} Kc7 {[%emt 0:08:47]} 45. Qf8 {[%emt 0:05:30]} h5 {[%emt 0:07:46]} 46. Qe7+ {[%emt 0:00:17]} Kc8 {[%emt 0:00:06]} 47. Qxg5 {[%emt 0:01:24]} Qxc2 {[%emt 0:00:55]} 48. Qf6 {[%emt 0:01:06]} Be8 {[%emt 0:01:58]} 49. Qe6+ {[%emt 0:02:22]} 1/2-1/2